fUSD/lending_fUSD_20251024
["ID","MTS","AMOUNT","RATE_DAILY","PERIOD"]
[392225130,1761267055711,-500.0,0.00043835,120]
[392225131,1761267055721,-722.14,0.00043835,120]
[392225132,1761267055731,-500.0,0.00043835,120]
[392225133,1761267055741,-504.76246634,0.00043835,120]
[392225134,1761267055751,-500.0,0.00043835,120]
[392225135,1761267055761,-500.0,0.00043835,120]
[392225136,1761267055771,-500.0,0.00043835,120]
[392225137,1761267055780,-500.0,0.00043835,120]
[392225138,1761267055790,-500.0,0.00043835,120]
[392225139,1761267055801,-500.0,0.00043835,120]
[392225140,1761267055812,-500.0,0.00043835,120]
[392225141,1761267055821,-500.0,0.00043835,120]
[392225142,1761267055831,-455.49295827,0.00043835,120]
[392225143,1761267055845,-500.0,0.00043835,120]
[392225144,1761267055855,-500.0,0.00043835,120]
[392225145,1761267055865,-500.0,0.00043835,120]
[392225146,1761267055875,-500.0,0.00043835,120]
[392225147,1761267055885,-500.0,0.00043835,120]
[392225148,1761267055895,-500.0,0.00043835,120]
[392225149,1761267055906,-500.0,0.00043835,120]
[392225150,1761267055916,-500.0,0.00043835,120]
[392225151,1761267055926,-500.0,0.00043835,120]
[392225152,1761267055936,-283.30763333,0.00043835,120]
[392225153,1761267055947,-500.0,0.00043835,120]
[392225154,1761267055957,-500.0,0.00043835,120]
[392225155,1761267055967,-500.0,0.00043835,120]
[392225156,1761267055976,-500.0,0.00043835,120]
[392225157,1761267055986,-262.49645623,0.00043835,120]
[392225159,1761267219523,-297.93058014,0.00024932,2]
[392225160,1761267519683,-200.00853577,0.00024932,2]
[392225162,1761267609813,-2.06088409,0.00024932,2]
[392225163,1761267609835,-234.65237261,0.00024932,2]
[392225164,1761267612370,-265.34762739,0.00024932,2]
[392225165,1761267612393,-100.24230507,0.00024932,2]
[392225166,1761267616659,-218.61143519,0.00024932,2]
[392225167,1761267618754,-181.14625974,0.00024932,2]
[392225168,1761267618775,-272.38477963,0.00024932,2]
[392225169,1761267630400,-62.21190477,0.00024932,2]
[392225170,1761267630423,-150.0,0.00024932,2]
[392225171,1761267630444,-75.15136936,0.00024932,2]
[392225172,1761267650544,355.75,0.00013699,2]
[392225173,1761267650895,355.75,0.00020187,2]
[392225176,1761267667881,250.0,0.00017,2]
[392225177,1761267806234,-153.26,0.00024417,2]
[392225178,1761267806255,-45.36344099,0.00024932,2]
[392225179,1761267809237,-207.28335242,0.00024932,2]
[392225180,1761267810986,152.78567518,0.00036686,120]
[392225181,1761267811485,-191.14,0.00024932,2]
[392225182,1761267842296,300.18488275,0.00036686,120]
[392225185,1761267969556,-56.21320659,0.00024932,2]
[392225186,1761267969578,-95.27838033,0.00024932,2]
[392225187,1761268027849,1766.47343518,0.00025804,120]
[392225188,1761268165155,-153.42443651,0.00024932,2]
[392225189,1761268165178,-206.60218048,0.00025932,6]
[392225206,1761268232043,-704.55781952,0.00025932,6]
[392225207,1761268232054,-355.75,0.00026676,2]
[392225208,1761268232066,-581.0,0.00027424,2]
[392225209,1761268232079,-150.0,0.00027424,2]
[392225210,1761268232090,-300.0,0.00027424,2]
[392225211,1761268232102,-300.0,0.00027424,2]
[392225212,1761268232116,-1200.0,0.00027424,2]
[392225213,1761268232128,-195.0,0.00027425,120]
[392225214,1761268232141,-250.0,0.00027425,2]
[392225215,1761268232152,-4000.0,0.00027425,120]
[392225216,1761268232163,-195.0,0.00027425,120]
[392225217,1761268232174,-283.30851216,0.00027425,120]
[392225218,1761268232184,-300.0,0.00027425,120]
[392225219,1761268232195,-300.0,0.00027425,120]
[392225220,1761268232206,-2500.0,0.00027425,120]
[392225221,1761268232217,-300.0,0.00027425,120]
[392225222,1761268232229,-250.0,0.00027425,2]
[392225223,1761268232239,-261.40211524,0.00027425,120]
[392225224,1761268232249,-300.0,0.00028525,120]
[392225225,1761268232260,-300.0,0.00028525,120]
[392225226,1761268232271,-300.0,0.00028525,120]
[392225227,1761268232282,-420.0,0.00029636,2]
[392225228,1761268232292,-1000.0,0.0003,3]
[392225229,1761268232303,-1000.0,0.00031,3]
[392225230,1761268232313,-587.0,0.00032025,2]
[392225231,1761268232323,-355.75,0.00033165,2]
[392225232,1761268232334,-168.0,0.00034751,2]
[392225233,1761268232346,-168.0,0.00034907,2]
[392225234,1761268232357,-14.66146702,0.00034943,2]
[392225235,1761268232370,-153.33853298,0.00034943,2]
[392225236,1761268232382,-168.0,0.00035672,2]
[392225237,1761268232392,-160.0,0.0003665,30]
[392225238,1761268232404,-500.0,0.00036659,120]
[392225239,1761268232415,-130.14543222,0.00036659,120]
[392225240,1761268232441,-374.94226917,0.00036659,120]
[392225241,1761268232452,-500.0,0.00036659,120]
[392225242,1761268232462,-196.55066127,0.00036659,120]
[392225243,1761268232486,-303.44933873,0.00036659,120]
[392225244,1761268232496,-500.0,0.00036659,120]
[392225245,1761268232507,-1358.73157173,0.00036686,20]
[392225246,1761268232518,-500.0,0.00036686,15]
[392225247,1761268232529,-398.67085503,0.00036686,10]
[392225248,1761268232595,-98.32914497,0.00036686,10]
[392225249,1761268232606,-168.0,0.00036976,2]
[392225250,1761268232620,-168.0,0.00037114,2]
[392225251,1761268232632,-256.16549843,0.000372,120]
[392225252,1761268232644,-168.0,0.00037986,2]
[392225253,1761268232655,-168.0,0.00038103,2]
[392225254,1761268232666,-152.0,0.00038431,3]
[392225256,1761268232676,-166.66,0.00038603,30]
[392225258,1761268232687,-3562.7,0.00039245,2]
[392225260,1761268232699,-152.0,0.00039376,4]
[392225262,1761268232711,-200.0,0.00039414,2]
[392225263,1761268232721,-166.66,0.00039415,30]
[392225264,1761268232731,-150.0,0.00039427,4]
[392225265,1761268232742,-150.0,0.00039653,2]
[392225266,1761268232752,-150.0,0.00039653,120]
[392225267,1761268232762,-355.75,0.00039654,2]
[392225268,1761268232772,-151.0,0.00039769,2]
[392225270,1761268232783,-151.0,0.00039769,2]
[392225275,1761268233074,-151.0,0.00039769,2]
[392225276,1761268233085,-151.0,0.00039769,2]
[392225277,1761268233096,-151.0,0.00039769,2]
[392225278,1761268233108,-151.0,0.00039769,2]
[392225279,1761268233119,-151.0,0.00039769,2]
[392225280,1761268233131,-151.0,0.00039769,2]
[392225281,1761268233141,-151.0,0.00039769,2]
[392225282,1761268233152,-151.0,0.00039769,2]
[392225283,1761268233165,-151.0,0.00039769,2]
[392225284,1761268233177,-151.0,0.00039769,2]
[392225285,1761268233189,-151.0,0.00039769,2]
[392225286,1761268233199,-151.0,0.00039769,2]
[392225287,1761268233211,-151.0,0.00039769,2]
[392225288,1761268233223,-151.0,0.00039769,2]
[392225289,1761268233234,-151.0,0.00039769,2]
[392225290,1761268233245,-151.0,0.00039769,2]
[392225291,1761268233256,-151.0,0.00039769,2]
[392225292,1761268233268,-151.0,0.00039769,2]
[392225293,1761268233279,-151.0,0.00039769,2]
[392225294,1761268233290,-151.0,0.00039769,2]
[392225295,1761268233301,-151.0,0.00039769,2]
[392225296,1761268233311,-164.49996355,0.00039769,2]
[392225297,1761268233323,-151.0,0.00039769,2]
[392225298,1761268233333,-151.0,0.00039769,2]
[392225299,1761268233343,-151.0,0.00039769,2]
[392225300,1761268233354,-151.0,0.00039769,2]
[392225301,1761268233364,-151.0,0.00039769,2]
[392225302,1761268233374,-151.0,0.00039769,2]
[392225303,1761268233385,-151.0,0.00039769,2]
[392225304,1761268233395,-151.0,0.00039769,2]
[392225305,1761268233405,-151.0,0.00039769,2]
[392225306,1761268233415,-151.0,0.00039769,2]
[392225307,1761268233426,-151.0,0.00039769,2]
[392225308,1761268233436,-151.0,0.00039769,2]
[392225309,1761268233447,-151.0,0.00039769,2]
[392225310,1761268233457,-247.77310714,0.00039769,2]
[392225311,1761268233467,-310.13,0.00039789,30]
[392225312,1761268233477,-635.584,0.00039793,56]
[392225313,1761268233488,-2053.0,0.00039793,2]
[392225314,1761268233498,-785.775,0.00039793,2]
[392225315,1761268233507,-572.0,0.00039793,2]
[392225316,1761268233518,-818.0,0.00039793,2]
[392225317,1761268233530,-1591.0,0.00039793,2]
[392225318,1761268233542,-605.0,0.00039793,2]
[392225319,1761268233557,-1311.0,0.00039793,2]
[392225320,1761268233567,-1269.0,0.00039793,2]
[392225321,1761268233578,-817.0,0.00039793,2]
[392225322,1761268233589,-1184.0,0.00039793,2]
[392225323,1761268233600,-2549.0,0.00039793,2]
[392225324,1761268233609,-903.0,0.00039793,2]
[392225325,1761268233619,-3486.0,0.00039793,2]
[392225326,1761268233631,-185.63,0.00039931,2]
[392225327,1761268233641,-195.96435769,0.00040061,30]
[392225328,1761268233652,-310.13,0.00040063,30]
[392225329,1761268233662,-254.57,0.0004017,2]
[392225330,1761268233672,-166.66,0.00040228,30]
[392225331,1761268233682,-9899.38,0.0004029,2]
[392225332,1761268233692,-999.99,0.0004029,2]
[392225333,1761268233702,-4417.71,0.0004029,2]
[392225334,1761268233712,-150.99,0.0004029,2]
[392225335,1761268233723,-152.0,0.0004032,5]
[392225336,1761268233733,-310.13,0.00040337,30]
[392225337,1761268233743,-250.0,0.00040358,2]
[392225338,1761268233754,-17394.0,0.00040954,2]
[392225339,1761268233764,-166.66,0.00041041,30]
[392225340,1761268233774,-200.0,0.00041096,20]
[392225341,1761268233784,-200.0,0.00041096,20]
[392225342,1761268233795,-152.0,0.00041265,6]
[392225343,1761268233806,-185.63,0.00041429,2]
[392225344,1761268233816,-3082.0,0.00041444,120]
[392225345,1761268233826,-166.66,0.00041853,30]
[392225346,1761268233837,-152.0,0.0004221,7]
[392225347,1761268233848,-166.66,0.00042666,30]
[392225348,1761268233860,-220.556,0.00042793,2]
[392225349,1761268233871,-500.864,0.00042793,2]
[392225350,1761268233882,-786.0,0.00042793,2]
[392225351,1761268233893,-1591.0,0.00042793,2]
[392225352,1761268233904,-605.0,0.00042793,2]
[392225353,1761268233917,-1311.0,0.00042793,2]
[392225354,1761268233928,-1269.0,0.00042793,2]
[392225355,1761268233939,-817.0,0.00042793,2]
[392225356,1761268233950,-2549.0,0.00042793,2]
[392225357,1761268233960,-903.0,0.00042793,2]
[392225358,1761268233972,-3486.0,0.00042793,2]
[392225359,1761268233983,-852.66006281,0.00042891,30]
[392225360,1761268233997,-513.89,0.000429,120]
[392225361,1761268234011,-185.63,0.00042926,2]
[392225362,1761268234023,-170.0,0.00043,90]
[392225363,1761268234034,-154.0,0.00043,90]
[392225364,1761268234047,-152.0,0.00043155,8]
[392225365,1761268234058,-500.0,0.00043342,2]
[392225366,1761268234070,-500.0,0.00043356,60]
[392225367,1761268234081,-500.0,0.00043356,60]
[392225368,1761268234093,-200.0,0.000434,15]
[392225369,1761268234104,-500.0,0.000435,15]
[392225370,1761268234115,-171.82180234,0.00043585,120]
[392225371,1761268234126,-300.0,0.00043585,120]
[392225372,1761268234139,-300.0,0.00043585,120]
[392225373,1761268234152,-600.0,0.00043585,120]
[392225374,1761268234164,-700.0,0.000436,15]
[392225375,1761268234175,-1000.0,0.00043698,120]
[392225376,1761268234186,-1000.0,0.00043698,120]
[392225377,1761268234198,-214.68226152,0.00043698,120]
[392225378,1761268234210,-1000.0,0.000437,15]
[392225379,1761268234221,-159.05399577,0.00043722,15]
[392225380,1761268234233,-500.49404974,0.00043724,120]
[392225381,1761268234245,-2628.34992232,0.00043725,15]
[392225382,1761268234258,-2628.34992231,0.00043726,15]
[392225383,1761268234270,-2628.34992231,0.00043727,15]
[392225384,1761268234281,-2628.34992231,0.00043728,15]
[392225385,1761268234292,-159.05399575,0.00043729,15]
[392225386,1761268234302,-2628.34992231,0.00043729,15]
[392225387,1761268234312,-2628.34992231,0.00043731,15]
[392225388,1761268234323,-2628.34992231,0.00043732,15]
[392225389,1761268234333,-2628.34992231,0.00043733,15]
[392225390,1761268234343,-2628.34992231,0.00043734,15]
[392225391,1761268234354,-316.27142676,0.00043735,12]
[392225392,1761268234366,-205.49045471,0.00043735,2]
[392225393,1761268234378,-159.05399575,0.00043735,15]
[392225394,1761268234388,-2628.34992231,0.00043735,15]
[392225395,1761268234399,-6085.0982,0.00043735,2]
[392225396,1761268234415,-2398.26537161,0.00043735,120]
[392225397,1761268234430,-2601.73462839,0.00043735,120]
[392225398,1761268234442,-2674.26144666,0.000438,120]
[392225399,1761268234453,-1200.0,0.000438,15]
[392225400,1761268234465,-151.0,0.00043822,120]
[392225401,1761268234475,-38774.2209331,0.00043824,3]
[392225402,1761268234487,-500.0,0.00043824,7]
[392225403,1761268234499,-500.0,0.00043824,7]
[392225404,1761268234510,-500.0,0.00043824,120]
[392225405,1761268234521,-500.0,0.00043824,120]
[392225406,1761268234533,-1426.04902409,0.00043825,3]
[392225407,1761268234582,-33853.24903733,0.00043825,3]
[392225408,1761268234654,-474.654,0.00043825,3]
[392225409,1761268234685,-4693.26128386,0.00043825,3]
[392225410,1761268234699,-298.86,0.00043825,3]
[392225412,1761268237700,-381.061,0.00039793,2]
[392225413,1761268237709,-54.62071857,0.00043725,15]
[392225414,1761268237837,-450.58499,0.00043725,15]
[392225415,1761268237849,-18.37160933,0.00043725,15]
[392225416,1761268237859,-308.00453946,0.00043825,3]
[392225417,1761268237871,-135584.21181166,0.00043825,3]
[392225418,1761268237882,-16104.0,0.00043825,3]
[392225419,1761268237893,-10290.0,0.00043825,3]
[392225420,1761268237905,-37367.8800886,0.00043825,3]
[392225421,1761268237915,-500.0,0.00043825,120]
[392225422,1761268237924,-2098.0,0.00043834,7]
[392225423,1761268237934,-151.09277885,0.00043834,20]
[392225424,1761268237943,-500.0,0.00043834,7]
[392225425,1761268237953,-500.0,0.00043834,7]
[392225426,1761268237963,-500.0,0.00043834,7]
[392225427,1761268237972,-500.0,0.00043834,7]
[392225428,1761268237982,-500.0,0.00043834,7]
[392225429,1761268237992,-64.14299255,0.00043834,7]
[392225430,1761268238004,-435.85700745,0.00043834,7]
[392225431,1761268238013,-500.0,0.00043834,7]
[392225432,1761268238023,-500.0,0.00043834,7]
[392225433,1761268238033,-500.0,0.00043834,7]
[392225434,1761268238043,-456.44,0.00043834,7]
[392225435,1761268238052,-250.0,0.00043834,120]
[392225436,1761268238062,-250.0,0.00043834,120]
[392225437,1761268238071,-250.0,0.00043834,120]
[392225438,1761268238081,-250.0,0.00043834,120]
[392225439,1761268238091,-250.0,0.00043834,120]
[392225440,1761268238100,-250.0,0.00043834,120]
[392225450,1761268238376,-250.0,0.00043834,120]
[392225451,1761268238425,-250.0,0.00043834,120]
[392225452,1761268238435,-250.0,0.00043834,120]
[392225453,1761268238444,-250.0,0.00043834,120]
[392225454,1761268238454,-250.0,0.00043834,120]
[392225455,1761268238464,-250.0,0.00043834,120]
[392225456,1761268238473,-250.0,0.00043834,120]
[392225457,1761268238482,-250.0,0.00043834,120]
[392225458,1761268238492,-250.0,0.00043834,120]
[392225459,1761268238501,-250.0,0.00043834,120]
[392225460,1761268238511,-250.0,0.00043834,120]
[392225461,1761268238520,-250.0,0.00043834,120]
[392225462,1761268238529,-500.0,0.00043834,120]
[392225463,1761268238539,-151.0,0.00043834,120]
[392225464,1761268238552,-500.0,0.00043834,120]
[392225465,1761268238561,-151.0,0.00043834,120]
[392225466,1761268238571,-151.0,0.00043834,120]
[392225467,1761268238580,-500.0,0.00043834,120]
[392225468,1761268238589,-500.0,0.00043834,120]
[392225469,1761268238601,-151.0,0.00043834,120]
[392225470,1761268238611,-500.0,0.00043834,120]
[392225471,1761268238620,-600.0,0.00043834,120]
[392225472,1761268238630,-151.0,0.00043834,120]
[392225473,1761268238640,-500.0,0.00043834,120]
[392225474,1761268238649,-156.587,0.00043834,120]
[392225475,1761268238659,-500.0,0.00043834,120]
[392225476,1761268238669,-151.0,0.00043834,120]
[392225477,1761268238679,-600.0,0.00043834,120]
[392225478,1761268238688,-500.0,0.00043834,120]
[392225479,1761268238697,-250.0,0.00043834,120]
[392225480,1761268238706,-151.0,0.00043834,120]
[392225481,1761268238716,-500.0,0.00043834,120]
[392225482,1761268238726,-162.380719,0.00043834,120]
[392225483,1761268238736,-500.0,0.00043834,120]
[392225484,1761268238745,-600.0,0.00043834,120]
[392225485,1761268238754,-500.0,0.00043834,120]
[392225486,1761268238763,-250.0,0.00043834,120]
[392225487,1761268238773,-151.0,0.00043834,120]
[392225488,1761268238783,-500.0,0.00043834,120]
[392225489,1761268238792,-500.0,0.00043834,120]
[392225490,1761268238801,-168.3888056,0.00043834,120]
[392225491,1761268238810,-600.0,0.00043834,120]
[392225492,1761268238820,-500.0,0.00043834,120]
[392225493,1761268238829,-250.0,0.00043834,120]
[392225494,1761268238839,-151.0,0.00043834,120]
[392225495,1761268238848,-500.0,0.00043834,120]
[392225496,1761268238858,-500.0,0.00043834,120]
[392225497,1761268238868,-174.61919141,0.00043834,120]
[392225498,1761268238877,-600.0,0.00043834,120]
[392225499,1761268238887,-500.0,0.00043834,120]
[392225500,1761268238897,-250.0,0.00043834,120]
[392225501,1761268238906,-500.0,0.00043834,120]
[392225502,1761268238916,-151.0,0.00043834,120]
[392225503,1761268238926,-500.0,0.00043834,120]
[392225504,1761268238936,-181.08010149,0.00043834,120]
[392225505,1761268238946,-500.0,0.00043834,120]
[392225506,1761268238955,-600.0,0.00043834,120]
[392225507,1761268238965,-250.0,0.00043834,120]
[392225508,1761268238975,-500.0,0.00043834,120]
[392225509,1761268238985,-151.0,0.00043834,120]
[392225510,1761268238994,-500.0,0.00043834,120]
[392225511,1761268239005,-187.78006525,0.00043834,120]
[392225512,1761268239014,-151.0,0.00043834,120]
[392225513,1761268239024,-500.0,0.00043834,120]
[392225514,1761268239033,-600.0,0.00043834,120]
[392225515,1761268239043,-250.0,0.00043834,120]
[392225516,1761268239054,-151.0,0.00043834,120]
[392225517,1761268239063,-500.0,0.00043834,120]
[392225518,1761268239074,-194.72792766,0.00043834,120]
[392225519,1761268239083,-151.0,0.00043834,120]
[392225520,1761268239093,-600.0,0.00043834,120]
[392225521,1761268239103,-500.0,0.00043834,120]
[392225522,1761268239113,-250.0,0.00043834,120]
[392225523,1761268239122,-500.0,0.00043834,120]
[392225524,1761268239132,-201.93286098,0.00043834,120]
[392225525,1761268239141,-151.0,0.00043834,120]
[392225526,1761268239150,-600.0,0.00043834,120]
[392225527,1761268239160,-500.0,0.00043834,120]
[392225528,1761268239170,-250.0,0.00043834,120]
[392225529,1761268239179,-151.0,0.00043834,120]
[392225530,1761268239188,-600.0,0.00043834,120]
[392225531,1761268239198,-220.0,0.00043834,120]
[392225532,1761268239207,-250.0,0.00043834,120]
[392225533,1761268239216,-151.0,0.00043834,120]
[392225534,1761268239225,-151.0,0.00043834,120]
[392225535,1761268239235,-220.0,0.00043834,120]
[392225536,1761268239245,-151.0,0.00043834,120]
[392225537,1761268239255,-220.0,0.00043834,120]
[392225538,1761268239264,-500.0,0.00043834,120]
[392225539,1761268239274,-151.0,0.00043834,120]
[392225540,1761268239283,-500.0,0.00043834,120]
[392225541,1761268239292,-500.0,0.00043834,120]
[392225542,1761268239301,-151.0,0.00043834,120]
[392225543,1761268239311,-500.0,0.00043834,120]
[392225544,1761268239321,-250.0,0.00043834,120]
[392225545,1761268239330,-500.0,0.00043834,120]
[392225546,1761268239340,-151.0,0.00043834,120]
[392225547,1761268239350,-500.0,0.00043834,120]
[392225548,1761268239359,-250.0,0.00043834,120]
[392225549,1761268239368,-500.0,0.00043834,120]
[392225550,1761268239378,-151.0,0.00043834,120]
[392225551,1761268239387,-500.0,0.00043834,120]
[392225552,1761268239397,-151.0,0.00043834,120]
[392225553,1761268239407,-250.0,0.00043834,120]
[392225554,1761268239416,-500.0,0.00043834,120]
[392225555,1761268239425,-151.0,0.00043834,120]
[392225556,1761268239435,-500.0,0.00043834,120]
[392225557,1761268239444,-156.587,0.00043834,120]
[392225558,1761268239453,-250.0,0.00043834,120]
[392225559,1761268239463,-500.0,0.00043834,120]
[392225560,1761268239472,-500.0,0.00043834,120]
[392225561,1761268239481,-151.0,0.00043834,120]
[392225562,1761268239490,-162.380719,0.00043834,120]
[392225563,1761268239499,-250.0,0.00043834,120]
[392225564,1761268239508,-500.0,0.00043834,120]
[392225565,1761268239517,-500.0,0.00043834,120]
[392225566,1761268239526,-151.0,0.00043834,120]
[392225567,1761268239535,-168.3888056,0.00043834,120]
[392225568,1761268239545,-250.0,0.00043834,120]
[392225569,1761268239558,-500.0,0.00043834,120]
[392225571,1761268239568,-500.0,0.00043834,120]
[392225573,1761268239577,-151.0,0.00043834,120]
[392225574,1761268239586,-174.61919141,0.00043834,120]
[392225575,1761268239595,-250.0,0.00043834,120]
[392225576,1761268239604,-151.0,0.00043834,120]
[392225577,1761268239613,-181.08010149,0.00043834,120]
[392225578,1761268239622,-500.0,0.00043834,120]
[392225580,1761268239632,-250.0,0.00043834,120]
[392225582,1761268239641,-500.0,0.00043834,120]
[392225583,1761268239651,-151.0,0.00043834,120]
[392225584,1761268239660,-187.78006525,0.00043834,120]
[392225585,1761268239669,-250.0,0.00043834,120]
[392225586,1761268239678,-500.0,0.00043834,120]
[392225587,1761268239687,-151.0,0.00043834,120]
[392225588,1761268239696,-194.72792766,0.00043834,120]
[392225589,1761268239706,-151.0,0.00043834,120]
[392225590,1761268239715,-500.0,0.00043834,120]
[392225591,1761268239725,-201.93286098,0.00043834,120]
[392225592,1761268239734,-151.0,0.00043834,120]
[392225593,1761268239743,-500.0,0.00043834,120]
[392225594,1761268239752,-500.0,0.00043834,120]
[392225595,1761268239761,-151.0,0.00043834,120]
[392225596,1761268239770,-500.0,0.00043834,120]
[392225597,1761268239779,-500.0,0.00043834,120]
[392225598,1761268239788,-151.0,0.00043834,120]
[392225599,1761268239798,-500.0,0.00043834,120]
[392225600,1761268239807,-500.0,0.00043834,120]
[392225601,1761268239816,-151.0,0.00043834,120]
[392225602,1761268239825,-414.0,0.00043834,120]
[392225603,1761268239834,-500.0,0.00043834,120]
[392225604,1761268239843,-500.0,0.00043834,120]
[392225605,1761268239853,-151.0,0.00043834,120]
[392225606,1761268239862,-429.318,0.00043834,120]
[392225607,1761268239871,-500.0,0.00043834,120]
[392225608,1761268239881,-151.0,0.00043834,120]
[392225609,1761268239891,-445.202766,0.00043834,120]
[392225610,1761268239901,-500.0,0.00043834,120]
[392225611,1761268239913,-500.0,0.00043834,120]
[392225612,1761268239923,-151.0,0.00043834,120]
[392225613,1761268239935,-461.67526834,0.00043834,120]
[392225614,1761268239945,-500.0,0.00043834,120]
[392225615,1761268239956,-500.0,0.00043834,120]
[392225616,1761268239966,-151.0,0.00043834,120]
[392225617,1761268239976,-478.75725327,0.00043834,120]
[392225618,1761268239987,-500.0,0.00043834,120]
[392225619,1761268239999,-500.0,0.00043834,120]
[392225620,1761268240009,-496.47127164,0.00043834,120]
[392225621,1761268240020,-500.0,0.00043834,120]
[392225622,1761268240030,-300.0,0.00043834,120]
[392225623,1761268240040,-514.84070869,0.00043834,120]
[392225624,1761268240051,-500.0,0.00043834,120]
[392225625,1761268240061,-311.1,0.00043834,120]
[392225626,1761268240071,-533.88981491,0.00043834,120]
[392225627,1761268240081,-500.0,0.00043834,120]
[392225628,1761268240090,-322.6107,0.00043834,120]
[392225629,1761268240100,-553.64373806,0.00043834,120]
[392225630,1761268240110,-160.0,0.00043834,120]
[392225631,1761268240120,-334.5472959,0.00043834,120]
[392225632,1761268240130,-500.0,0.00043834,120]
[392225633,1761268240140,-160.0,0.00043834,120]
[392225634,1761268240149,-346.92554585,0.00043834,120]
[392225635,1761268240162,-520.0,0.00043834,120]
[392225636,1761268240171,-381.51108438,0.00043834,15]
[392225637,1761268240181,-160.0,0.00043834,120]
[392225638,1761268240191,-518.5,0.00043834,120]
[392225639,1761268240200,-359.76179104,0.00043834,120]
[392225640,1761268240210,-539.24,0.00043834,120]
[392225641,1761268240219,-160.0,0.00043834,120]
[392225642,1761268240228,-373.07297731,0.00043834,120]
[392225643,1761268240238,-537.6845,0.00043834,120]
[392225644,1761268240248,-559.19188,0.00043834,120]
[392225647,1761268240257,-160.0,0.00043834,120]
[392225649,1761268240267,-557.5788265,0.00043834,120]
[392225651,1761268240276,-386.87667747,0.00043834,120]
[392225653,1761268240286,-579.88197956,0.00043834,120]
[392225655,1761268240295,-160.0,0.00043834,120]
[392225657,1761268240305,-253.19163757,0.00043834,120]
[392225658,1761268240315,-601.3376128,0.00043834,120]
[392225659,1761268240324,-160.0,0.00043834,120]
[392225660,1761268240333,-623.58710448,0.00043834,120]
[392225661,1761268240342,-160.0,0.00043834,120]
[392225662,1761268240361,-646.65982734,0.00043834,120]
[392225663,1761268240370,-160.0,0.00043834,120]
[392225664,1761268240379,-670.58624095,0.00043834,120]
[392225665,1761268240388,-695.39793187,0.00043834,120]
[392225666,1761268240398,-642.13244841,0.00043834,120]
[392225667,1761268240408,-376.9952039,0.00043835,2]
[392225668,1761268240417,-995.974886,0.00043835,120]
[392225669,1761268240426,-165.2047961,0.00043835,2]
[392225670,1761268240435,-174.14259,0.00043835,120]
[392225671,1761268240445,-161.302127,0.00043835,120]
[392225672,1761268240455,-516.14615284,0.00043835,120]
[392225673,1761268240464,-500.0,0.00043835,120]
[392225674,1761268240475,-500.0,0.00043835,120]
[392225675,1761268240496,-500.0,0.00043835,120]
[392225676,1761268240507,-500.0,0.00043835,120]
[392225677,1761268240518,-500.0,0.00043835,120]
[392225678,1761268240527,-500.0,0.00043835,120]
[392225679,1761268240537,-500.0,0.00043835,120]
[392225680,1761268240550,-500.0,0.00043835,120]
[392225681,1761268240571,-267.0598479,0.00043835,120]